[Event "Late-Titled-Tuesday-Blitz-June-25-2024"]
[Site "Chess.com"]
[Date "2024.06.25"]
[Round "9"]
[White "Quattroporte300"]
[Black "GMsKoRPioN"]
[Result "0-1"]
[WhiteElo "2417"]
[BlackElo "2596"]
[TimeControl "180+1"]
[EndTime "15:44:36 PDT"]
[Termination "GMsKoRPioN won on time"]

1. e4 {[%clk 0:03:00.9]} 1... d6 {[%clk 0:02:08.4]} 2. d4 {[%clk 0:02:59.6]}
2... g6 {[%clk 0:02:09]} 3. Nc3 {[%clk 0:02:59.8]} 3... Bg7 {[%clk 0:02:09.2]}
4. Nf3 {[%clk 0:02:59.5]} 4... Nf6 {[%clk 0:02:09]} 5. h3 {[%clk 0:02:58.4]}
5... O-O {[%clk 0:02:09.3]} 6. Bd3 {[%clk 0:02:57.5]} 6... Nc6 {[%clk
0:02:09.7]} 7. O-O {[%clk 0:02:57.7]} 7... e5 {[%clk 0:02:10]} 8. d5 {[%clk
0:02:56.9]} 8... Nd4 {[%clk 0:02:08.9]} 9. Be3 {[%clk 0:02:51.8]} 9... Nxf3+
{[%clk 0:02:08.2]} 10. Qxf3 {[%clk 0:02:51.4]} 10... Ne8 {[%clk 0:01:54.2]} 11.
Qe2 {[%clk 0:02:49.2]} 11... f5 {[%clk 0:01:54.5]} 12. f4 {[%clk 0:02:48.9]}
12... exf4 {[%clk 0:01:51.9]} 13. Bxf4 {[%clk 0:02:47.9]} 13... g5 {[%clk
0:01:44.9]} 14. Bd2 {[%clk 0:02:42.2]} 14... f4 {[%clk 0:01:44.9]} 15. Rae1
{[%clk 0:02:26.2]} 15... Qe7 {[%clk 0:01:43.5]} 16. Qh5 {[%clk 0:02:22.8]} 16...
Qe5 {[%clk 0:01:38.2]} 17. Nd1 {[%clk 0:02:16.2]} 17... Nf6 {[%clk 0:01:38.4]}
18. Qe2 {[%clk 0:02:13.3]} 18... Nd7 {[%clk 0:01:38.8]} 19. Bc3 {[%clk
0:02:13.6]} 19... Qe7 {[%clk 0:01:39.2]} 20. Bxg7 {[%clk 0:01:58.5]} 20... Qxg7
{[%clk 0:01:38.7]} 21. c3 {[%clk 0:01:52.2]} 21... Ne5 {[%clk 0:01:39.1]} 22.
Kh2 {[%clk 0:01:28.6]} 22... g4 {[%clk 0:01:37.2]} 23. Qd2 {[%clk 0:01:21.4]}
23... f3 {[%clk 0:01:30.1]} 24. g3 {[%clk 0:01:13.3]} 24... gxh3 {[%clk
0:01:29.7]} 25. Ne3 {[%clk 0:01:09.8]} 25... Kh8 {[%clk 0:01:30.1]} 26. Nf5
{[%clk 0:01:03]} 26... Bxf5 {[%clk 0:01:29.4]} 27. exf5 {[%clk 0:01:02.9]} 27...
Rae8 {[%clk 0:01:28.7]} 28. Bc2 {[%clk 0:00:58.9]} 28... f2 {[%clk 0:01:26.9]}
29. Rxf2 {[%clk 0:00:40.5]} 29... Ng4+ {[%clk 0:01:24.2]} 30. Kh1 {[%clk
0:00:40.9]} 30... Nxf2+ {[%clk 0:01:20.7]} 31. Qxf2 {[%clk 0:00:40.4]} 31... Re5
{[%clk 0:01:03.6]} 32. Kh2 {[%clk 0:00:33.8]} 32... Rfe8 {[%clk 0:01:02.9]} 33.
Rf1 {[%clk 0:00:32.7]} 33... Qf6 {[%clk 0:01:02.2]} 34. Bd3 {[%clk 0:00:28.9]}
34... Rxd5 {[%clk 0:01:00.4]} 35. Qf3 {[%clk 0:00:25.1]} 35... Rde5 {[%clk
0:00:58.9]} 36. Rf2 {[%clk 0:00:25.3]} 36... Re3 {[%clk 0:00:58.9]} 37. Qd5
{[%clk 0:00:18.3]} 37... c6 {[%clk 0:00:58]} 38. Qc4 {[%clk 0:00:13.8]} 38... d5
{[%clk 0:00:58.4]} 39. Qb4 {[%clk 0:00:04.2]} 39... Rxd3 {[%clk 0:00:55.3]} 40.
Qxb7 {[%clk 0:00:04.6]} 40... Rde3 {[%clk 0:00:54.8]} 41. Qxa7 {[%clk 0:00:04]}
41... Re2 {[%clk 0:00:55]} 42. a4 {[%clk 0:00:04]} 42... d4 {[%clk 0:00:48.2]}
43. Rxe2 {[%clk 0:00:03.1]} 43... Rxe2+ {[%clk 0:00:47.7]} 44. Kxh3 {[%clk
0:00:03.6]} 44... Qxf5+ {[%clk 0:00:48]} 45. g4 {[%clk 0:00:02.9]} 45... Re3+
{[%clk 0:00:43.8]} 0-1

[Event "Late-Titled-Tuesday-Blitz-June-25-2024"]
[Site "Chess.com"]
[Date "2024.06.25"]
[Round "9"]
[White "prxcess_brownie"]
[Black "dosto07"]
[Result "0-1"]
[WhiteElo "2230"]
[BlackElo "2431"]
[TimeControl "180+1"]
[EndTime "15:44:38 PDT"]
[Termination "dosto07 won on time"]

1. c4 {[%clk 0:03:00.9]} 1... e5 {[%clk 0:02:59.8]} 2. Nc3 {[%clk 0:02:59.9]}
2... Nf6 {[%clk 0:03:00.3]} 3. Nf3 {[%clk 0:02:59]} 3... Nc6 {[%clk 0:03:00.8]}
4. g3 {[%clk 0:02:57.3]} 4... Bb4 {[%clk 0:03:01.3]} 5. Bg2 {[%clk 0:02:56.5]}
5... Bxc3 {[%clk 0:03:01.4]} 6. bxc3 {[%clk 0:02:56]} 6... d6 {[%clk 0:03:02.1]}
7. O-O {[%clk 0:02:54.7]} 7... Be6 {[%clk 0:03:01.2]} 8. d3 {[%clk 0:02:53.9]}
8... Qd7 {[%clk 0:03:00.9]} 9. Rb1 {[%clk 0:02:49]} 9... b6 {[%clk 0:02:55.6]}
10. Qa4 {[%clk 0:02:44.7]} 10... O-O {[%clk 0:02:42.3]} 11. Re1 {[%clk
0:02:38.1]} 11... h6 {[%clk 0:02:33.5]} 12. Ba3 {[%clk 0:02:28.9]} 12... Rab8
{[%clk 0:02:23.6]} 13. Nd2 {[%clk 0:02:22.7]} 13... Na5 {[%clk 0:02:06]} 14.
Qxd7 {[%clk 0:02:17.1]} 14... Bxd7 {[%clk 0:02:05]} 15. d4 {[%clk 0:02:14.6]}
15... Bc6 {[%clk 0:01:59.1]} 16. dxe5 {[%clk 0:02:10.7]} 16... Bxg2 {[%clk
0:01:57.7]} 17. Kxg2 {[%clk 0:02:07.4]} 17... Ne8 {[%clk 0:01:53.6]} 18. exd6
{[%clk 0:02:05.9]} 18... Nxd6 {[%clk 0:01:53.9]} 19. c5 {[%clk 0:02:04.6]} 19...
Ndc4 {[%clk 0:01:52.1]} 20. Nxc4 {[%clk 0:02:01.3]} 20... Nxc4 {[%clk
0:01:52.3]} 21. Bc1 {[%clk 0:01:58.7]} 21... bxc5 {[%clk 0:01:51.3]} 22. Bf4
{[%clk 0:01:53.7]} 22... Nd6 {[%clk 0:01:42.8]} 23. Red1 {[%clk 0:01:41.7]}
23... Rfd8 {[%clk 0:01:37.4]} 24. e3 {[%clk 0:01:02.9]} 24... Rb6 {[%clk
0:01:33.2]} 25. Kf3 {[%clk 0:00:42]} 25... Kf8 {[%clk 0:01:29.7]} 26. Rb3 {[%clk
0:00:39.1]} 26... Ke7 {[%clk 0:01:26.5]} 27. Rdb1 {[%clk 0:00:35.7]} 27... f6
{[%clk 0:01:20.5]} 28. Ke2 {[%clk 0:00:29.6]} 28... g5 {[%clk 0:01:19.3]} 29.
Bxd6+ {[%clk 0:00:29.5]} 29... Rdxd6 {[%clk 0:01:17.6]} 30. R1b2 {[%clk
0:00:27.3]} 30... Kd7 {[%clk 0:01:13.6]} 31. c4 {[%clk 0:00:25.8]} 31... Kc6
{[%clk 0:01:13.5]} 32. a4 {[%clk 0:00:21.7]} 32... g4 {[%clk 0:01:06.8]} 33. a5
{[%clk 0:00:20.4]} 33... Rxb3 {[%clk 0:01:05.4]} 34. Rxb3 {[%clk 0:00:21.3]}
34... Rd8 {[%clk 0:00:52.6]} 35. a6 {[%clk 0:00:15.1]} 35... f5 {[%clk 0:00:47]}
36. Rb7 {[%clk 0:00:14.4]} 36... Ra8 {[%clk 0:00:47.1]} 37. e4 {[%clk
0:00:14.1]} 37... Re8 {[%clk 0:00:40.4]} 38. Rxa7 {[%clk 0:00:08.6]} 38... Rxe4+
{[%clk 0:00:40.2]} 39. Kf1 {[%clk 0:00:07.9]} 39... Rxc4 {[%clk 0:00:38.7]} 40.
Ra8 {[%clk 0:00:05.4]} 40... Ra4 {[%clk 0:00:38.4]} 41. Rh8 {[%clk 0:00:05.2]}
41... Rxa6 {[%clk 0:00:36.1]} 42. Rxh6+ {[%clk 0:00:05]} 42... Kb5 {[%clk
0:00:36.6]} 43. Rh5 {[%clk 0:00:04.7]} 43... c4 {[%clk 0:00:29.8]} 44. Rxf5+
{[%clk 0:00:03.7]} 44... Kb4 {[%clk 0:00:29.8]} 45. Rf4 {[%clk 0:00:02.2]} 45...
Rg6 {[%clk 0:00:29.2]} 0-1

[Event "Late-Titled-Tuesday-Blitz-June-25-2024"]
[Site "Chess.com"]
[Date "2024.06.25"]
[Round "9"]
[White "tarno17"]
[Black "Navyblue1"]
[Result "1-0"]
[WhiteElo "2170"]
[BlackElo "2144"]
[TimeControl "180+1"]
[EndTime "15:44:42 PDT"]
[Termination "tarno17 won on time"]

1. e4 {[%clk 0:03:00.9]} 1... c5 {[%clk 0:03:00.5]} 2. Nf3 {[%clk 0:02:58.9]}
2... d6 {[%clk 0:03:01]} 3. Bb5+ {[%clk 0:02:57.5]} 3... Nd7 {[%clk 0:03:00.4]}
4. O-O {[%clk 0:02:56.7]} 4... Nf6 {[%clk 0:02:58.9]} 5. Re1 {[%clk 0:02:54.8]}
5... e6 {[%clk 0:02:55.9]} 6. Nc3 {[%clk 0:02:51.2]} 6... Be7 {[%clk 0:02:52.6]}
7. Ne2 {[%clk 0:02:50.1]} 7... O-O {[%clk 0:02:45.3]} 8. Ng3 {[%clk 0:02:48.8]}
8... a6 {[%clk 0:02:41.5]} 9. Bxd7 {[%clk 0:02:46.7]} 9... Bxd7 {[%clk
0:02:40.3]} 10. d3 {[%clk 0:02:45.3]} 10... Bc6 {[%clk 0:02:37.8]} 11. h3 {[%clk
0:02:38.4]} 11... b5 {[%clk 0:02:36.8]} 12. Nh2 {[%clk 0:02:33]} 12... e5 {[%clk
0:02:12.9]} 13. Nf5 {[%clk 0:02:30.3]} 13... Re8 {[%clk 0:02:09.8]} 14. f4
{[%clk 0:02:11.4]} 14... exf4 {[%clk 0:01:56.9]} 15. Bxf4 {[%clk 0:02:09.8]}
15... Bf8 {[%clk 0:01:12.3]} 16. Qf3 {[%clk 0:01:58.4]} 16... Qd7 {[%clk
0:00:35.2]} 17. Rf1 {[%clk 0:01:21.9]} 17... Qxf5 {[%clk 0:00:25.3]} 18. exf5
{[%clk 0:01:19.3]} 18... Bxf3 {[%clk 0:00:24.7]} 19. Nxf3 {[%clk 0:01:20]} 19...
Re2 {[%clk 0:00:22.2]} 20. Rf2 {[%clk 0:01:20.3]} 20... Rae8 {[%clk 0:00:20.4]}
21. Raf1 {[%clk 0:01:19.4]} 21... Nd5 {[%clk 0:00:17.5]} 22. Bc1 {[%clk
0:01:15.1]} 22... Rxf2 {[%clk 0:00:16.9]} 23. Rxf2 {[%clk 0:01:14.6]} 23... Re1+
{[%clk 0:00:17.2]} 24. Nxe1 {[%clk 0:01:14.5]} 24... Be7 {[%clk 0:00:15.7]} 25.
Nf3 {[%clk 0:01:10.5]} 25... Bf6 {[%clk 0:00:16]} 26. c3 {[%clk 0:01:09.1]}
26... g6 {[%clk 0:00:12.6]} 27. Bg5 {[%clk 0:01:06.3]} 27... Bxg5 {[%clk
0:00:10.1]} 28. Nxg5 {[%clk 0:01:07.2]} 28... h6 {[%clk 0:00:10.1]} 29. Ne4
{[%clk 0:01:02.4]} 29... gxf5 {[%clk 0:00:10.1]} 30. Nxd6 {[%clk 0:01:01]} 30...
f4 {[%clk 0:00:08.6]} 31. Rxf4 {[%clk 0:00:59.7]} 31... Nxf4 {[%clk 0:00:08.4]}
32. Nf5 {[%clk 0:00:34.9]} 32... Nxd3 {[%clk 0:00:07.9]} 33. Nxh6+ {[%clk
0:00:32.7]} 33... Kf8 {[%clk 0:00:08]} 34. b3 {[%clk 0:00:32.2]} 34... Nc1
{[%clk 0:00:06.2]} 35. a4 {[%clk 0:00:23.8]} 35... Nxb3 {[%clk 0:00:06]} 36.
axb5 {[%clk 0:00:24.2]} 36... axb5 {[%clk 0:00:06.2]} 37. Nf5 {[%clk 0:00:23.9]}
37... Nd2 {[%clk 0:00:05.6]} 38. Ne3 {[%clk 0:00:20.6]} 38... Ne4 {[%clk
0:00:04]} 39. Nd5 {[%clk 0:00:17]} 39... Kg7 {[%clk 0:00:01.9]} 40. g4 {[%clk
0:00:16.7]} 40... Kg6 {[%clk 0:00:02.2]} 41. Kg2 {[%clk 0:00:16.5]} 1-0

[Event "Late-Titled-Tuesday-Blitz-June-25-2024"]
[Site "Chess.com"]
[Date "2024.06.25"]
[Round "9"]
[White "igorkovalenko"]
[Black "NikitaShnadrygin"]
[Result "1/2-1/2"]
[WhiteElo "2990"]
[BlackElo "2758"]
[TimeControl "180+1"]
[EndTime "15:44:43 PDT"]
[Termination "Game drawn by repetition"]

1. d4 {[%clk 0:03:00.9]} 1... d5 {[%clk 0:02:59.8]} 2. Bf4 {[%clk 0:03:01]} 2...
Nc6 {[%clk 0:03:00.7]} 3. e3 {[%clk 0:03:01.4]} 3... Nf6 {[%clk 0:02:59.7]} 4.
Nd2 {[%clk 0:02:58.9]} 4... Bf5 {[%clk 0:02:58.5]} 5. Ngf3 {[%clk 0:02:58.7]}
5... e6 {[%clk 0:02:58]} 6. Bb5 {[%clk 0:02:57.4]} 6... Bd6 {[%clk 0:02:57.4]}
7. O-O {[%clk 0:02:56.6]} 7... O-O {[%clk 0:02:57.3]} 8. Bg5 {[%clk 0:02:45.8]}
8... h6 {[%clk 0:02:52.6]} 9. Bh4 {[%clk 0:02:45.8]} 9... Be7 {[%clk 0:02:31.4]}
10. Bxc6 {[%clk 0:02:42.4]} 10... bxc6 {[%clk 0:02:31.4]} 11. Ne5 {[%clk
0:02:42.9]} 11... c5 {[%clk 0:02:17.5]} 12. Nc6 {[%clk 0:02:38.2]} 12... Qe8
{[%clk 0:02:11.3]} 13. Nxe7+ {[%clk 0:02:38.7]} 13... Qxe7 {[%clk 0:02:12.2]}
14. dxc5 {[%clk 0:02:29.7]} 14... g5 {[%clk 0:02:06.4]} 15. Bg3 {[%clk
0:02:29.8]} 15... Qxc5 {[%clk 0:02:06.7]} 16. Rc1 {[%clk 0:02:28.7]} 16... c6
{[%clk 0:02:00.1]} 17. Nb3 {[%clk 0:02:25.1]} 17... Qb6 {[%clk 0:01:39.5]} 18.
Qd4 {[%clk 0:02:09.7]} 18... Ne4 {[%clk 0:01:32.9]} 19. c4 {[%clk 0:02:04]}
19... c5 {[%clk 0:01:24.7]} 20. Qd1 {[%clk 0:01:54.6]} 20... Rfd8 {[%clk
0:01:09.1]} 21. cxd5 {[%clk 0:01:51.2]} 21... exd5 {[%clk 0:01:04.3]} 22. f3
{[%clk 0:01:45.6]} 22... Nxg3 {[%clk 0:01:02.5]} 23. hxg3 {[%clk 0:01:46.5]}
23... Rac8 {[%clk 0:00:57.4]} 24. Rf2 {[%clk 0:01:45.8]} 24... a5 {[%clk
0:00:46]} 25. g4 {[%clk 0:01:41.3]} 25... Bg6 {[%clk 0:00:40.7]} 26. Rd2 {[%clk
0:01:22.5]} 26... a4 {[%clk 0:00:34]} 27. Na1 {[%clk 0:01:22.9]} 27... d4 {[%clk
0:00:28.9]} 28. e4 {[%clk 0:01:07]} 28... c4 {[%clk 0:00:26.6]} 29. Kh1 {[%clk
0:01:04.5]} 29... a3 {[%clk 0:00:21.6]} 30. b3 {[%clk 0:00:55.9]} 30... c3
{[%clk 0:00:18.7]} 31. Rd3 {[%clk 0:00:56.4]} 31... h5 {[%clk 0:00:10.3]} 32.
gxh5 {[%clk 0:00:55.1]} 32... Bxh5 {[%clk 0:00:07.7]} 33. Nc2 {[%clk 0:00:55.4]}
33... Qh6 {[%clk 0:00:06.2]} 34. Kg1 {[%clk 0:00:53.9]} 34... g4 {[%clk
0:00:06.8]} 35. fxg4 {[%clk 0:00:52.8]} 35... Bg6 {[%clk 0:00:06.7]} 36. Nxd4
{[%clk 0:00:32.4]} 36... Bxe4 {[%clk 0:00:06.1]} 37. Rdxc3 {[%clk 0:00:32]}
37... Rxc3 {[%clk 0:00:05.6]} 38. Rxc3 {[%clk 0:00:32.9]} 38... Qb6 {[%clk
0:00:05.4]} 39. Rc4 {[%clk 0:00:29.7]} 39... Bd5 {[%clk 0:00:05.9]} 40. Ra4
{[%clk 0:00:25.1]} 40... Bc6 {[%clk 0:00:06.2]} 41. Rc4 {[%clk 0:00:22.6]} 41...
Bd5 {[%clk 0:00:06.3]} 42. Ra4 {[%clk 0:00:20.3]} 42... Bc6 {[%clk 0:00:06.7]}
43. Rc4 {[%clk 0:00:15.2]} 43... Bd5 {[%clk 0:00:07.1]} 1/2-1/2

[Event "Late-Titled-Tuesday-Blitz-June-25-2024"]
[Site "Chess.com"]
[Date "2024.06.25"]
[Round "9"]
[White "GelmanAlexander"]
[Black "Leebit02"]
[Result "0-1"]
[WhiteElo "2700"]
[BlackElo "2604"]
[TimeControl "180+1"]
[EndTime "15:44:44 PDT"]
[Termination "Leebit02 won on time"]

1. c4 {[%clk 0:03:00.9]} 1... e5 {[%clk 0:02:58.6]} 2. e3 {[%clk 0:03:00.4]}
2... Nf6 {[%clk 0:02:54.4]} 3. a3 {[%clk 0:03:00.7]} 3... g6 {[%clk 0:02:51]} 4.
d3 {[%clk 0:03:00.4]} 4... Bg7 {[%clk 0:02:51.2]} 5. Nf3 {[%clk 0:03:00.8]} 5...
Nc6 {[%clk 0:02:45.8]} 6. Nc3 {[%clk 0:02:59.3]} 6... O-O {[%clk 0:02:45.5]} 7.
Be2 {[%clk 0:02:59.2]} 7... d5 {[%clk 0:02:44.2]} 8. cxd5 {[%clk 0:02:58.7]}
8... Nxd5 {[%clk 0:02:44.4]} 9. Bd2 {[%clk 0:02:58.5]} 9... Be6 {[%clk
0:02:43.2]} 10. O-O {[%clk 0:02:56.4]} 10... a5 {[%clk 0:02:35.9]} 11. Ne4
{[%clk 0:02:53.6]} 11... a4 {[%clk 0:02:27.7]} 12. Nc5 {[%clk 0:02:49.7]} 12...
Bc8 {[%clk 0:02:27.2]} 13. Nxa4 {[%clk 0:02:48.1]} 13... f5 {[%clk 0:02:22.5]}
14. Nc3 {[%clk 0:02:47.7]} 14... Nb6 {[%clk 0:02:15.1]} 15. Qc2 {[%clk
0:02:39.9]} 15... Kh8 {[%clk 0:02:12.7]} 16. b4 {[%clk 0:02:32.9]} 16... g5
{[%clk 0:02:07.1]} 17. b5 {[%clk 0:02:30.2]} 17... Na5 {[%clk 0:02:01.1]} 18. g3
{[%clk 0:02:23]} 18... Be6 {[%clk 0:01:56.5]} 19. Rab1 {[%clk 0:02:20.3]} 19...
h6 {[%clk 0:01:47.9]} 20. a4 {[%clk 0:02:17.1]} 20... f4 {[%clk 0:01:43.2]} 21.
Ne4 {[%clk 0:02:11.5]} 21... Bh3 {[%clk 0:01:41.5]} 22. Rfc1 {[%clk 0:01:59.8]}
22... Nd5 {[%clk 0:01:41.8]} 23. Qd1 {[%clk 0:01:37.6]} 23... b6 {[%clk
0:01:24]} 24. Nc3 {[%clk 0:01:31.1]} 24... Ne7 {[%clk 0:01:15.9]} 25. Rb4 {[%clk
0:01:17.2]} 25... Nf5 {[%clk 0:01:06.1]} 26. exf4 {[%clk 0:01:11]} 26... exf4
{[%clk 0:01:03.9]} 27. gxf4 {[%clk 0:01:11.5]} 27... g4 {[%clk 0:01:03.3]} 28.
Ne5 {[%clk 0:01:08.6]} 28... Bxe5 {[%clk 0:00:52.2]} 29. fxe5 {[%clk 0:01:08.9]}
29... Nh4 {[%clk 0:00:49.3]} 30. Bxh6 {[%clk 0:00:55.6]} 30... Rg8 {[%clk
0:00:46.4]} 31. Bf4 {[%clk 0:00:37.6]} 31... Qe7 {[%clk 0:00:37.3]} 32. Nd5
{[%clk 0:00:33.8]} 32... Qf7 {[%clk 0:00:34.3]} 33. Nf6 {[%clk 0:00:31.1]} 33...
Rg6 {[%clk 0:00:29.5]} 34. Re4 {[%clk 0:00:21.5]} 34... Nb7 {[%clk 0:00:25.7]}
35. e6 {[%clk 0:00:20]} 35... Nf3+ {[%clk 0:00:21.2]} 36. Bxf3 {[%clk 0:00:13]}
36... gxf3+ {[%clk 0:00:21.1]} 37. Bg3 {[%clk 0:00:13.5]} 37... Qxf6 {[%clk
0:00:21.1]} 38. Rxc7 {[%clk 0:00:12.7]} 38... Nc5 {[%clk 0:00:21.2]} 39. Rh4+
{[%clk 0:00:12.8]} 39... Rh6 {[%clk 0:00:19.9]} 40. Rxh6+ {[%clk 0:00:09.9]}
40... Qxh6 {[%clk 0:00:20.3]} 41. Qa1+ {[%clk 0:00:05]} 41... Kg8 {[%clk
0:00:18.4]} 0-1

[Event "Late-Titled-Tuesday-Blitz-June-25-2024"]
[Site "Chess.com"]
[Date "2024.06.25"]
[Round "9"]
[White "ALRS-SPS"]
[Black "KNVB"]
[Result "0-1"]
[WhiteElo "2440"]
[BlackElo "2669"]
[TimeControl "180+1"]
[EndTime "15:44:45 PDT"]
[Termination "KNVB won by resignation"]

1. e4 {[%clk 0:03:00.9]} 1... e5 {[%clk 0:02:59.5]} 2. Nf3 {[%clk 0:03:00.8]}
2... Nc6 {[%clk 0:02:56.4]} 3. Bb5 {[%clk 0:03:00.7]} 3... Qf6 {[%clk
0:02:54.8]} 4. c3 {[%clk 0:02:47.5]} 4... Bc5 {[%clk 0:02:53.4]} 5. O-O {[%clk
0:02:44.3]} 5... Nge7 {[%clk 0:02:53.3]} 6. d3 {[%clk 0:02:40.7]} 6... h6 {[%clk
0:02:50.7]} 7. Be3 {[%clk 0:02:40.9]} 7... Bb6 {[%clk 0:02:50.2]} 8. Nbd2 {[%clk
0:02:40.4]} 8... d6 {[%clk 0:02:48.1]} 9. h3 {[%clk 0:02:39.7]} 9... O-O {[%clk
0:02:47.8]} 10. Nc4 {[%clk 0:02:38.9]} 10... Ng6 {[%clk 0:02:44.1]} 11. Nxb6
{[%clk 0:02:32.2]} 11... axb6 {[%clk 0:02:45]} 12. Kh2 {[%clk 0:02:23.9]} 12...
Nf4 {[%clk 0:02:31.5]} 13. Bxf4 {[%clk 0:02:12.8]} 13... Qxf4+ {[%clk
0:02:31.4]} 14. g3 {[%clk 0:02:05.4]} 14... Qf6 {[%clk 0:02:31.6]} 15. Kg2
{[%clk 0:01:59.3]} 15... Qe6 {[%clk 0:02:16.9]} 16. g4 {[%clk 0:01:52.1]} 16...
Rxa2 {[%clk 0:02:16.6]} 17. Rxa2 {[%clk 0:01:49]} 17... Qxa2 {[%clk 0:02:17.5]}
18. Qc2 {[%clk 0:01:45.7]} 18... Be6 {[%clk 0:01:43.9]} 19. Nh4 {[%clk
0:01:41.9]} 19... Ne7 {[%clk 0:00:51.8]} 20. Nf5 {[%clk 0:01:20.8]} 20... Ng6
{[%clk 0:00:51.4]} 21. Qd2 {[%clk 0:01:06]} 21... Nf4+ {[%clk 0:00:48.7]} 22.
Kh2 {[%clk 0:01:02.4]} 22... c6 {[%clk 0:00:30.9]} 23. Bc4 {[%clk 0:00:56.5]}
23... Bxc4 {[%clk 0:00:31.6]} 24. dxc4 {[%clk 0:00:57.3]} 24... Qxc4 {[%clk
0:00:32.5]} 25. Re1 {[%clk 0:00:54.2]} 25... Rd8 {[%clk 0:00:32.6]} 26. Ne3
{[%clk 0:00:33.3]} 26... Qxe4 {[%clk 0:00:29.3]} 27. Kg3 {[%clk 0:00:29.4]}
27... h5 {[%clk 0:00:16.3]} 28. f3 {[%clk 0:00:29.6]} 28... h4+ {[%clk
0:00:16.5]} 29. Kf2 {[%clk 0:00:22.8]} 29... Nxh3+ {[%clk 0:00:11.5]} 30. Kg2
{[%clk 0:00:23.2]} 30... Nf4+ {[%clk 0:00:11.6]} 31. Kf2 {[%clk 0:00:23.7]}
31... Qd3 {[%clk 0:00:05.2]} 32. Rd1 {[%clk 0:00:19.3]} 32... Qxd2+ {[%clk
0:00:04.6]} 33. Rxd2 {[%clk 0:00:20.2]} 33... d5 {[%clk 0:00:02.5]} 34. Nf5
{[%clk 0:00:20.8]} 34... g5 {[%clk 0:00:02.1]} 35. Nh6+ {[%clk 0:00:17.5]} 35...
Kf8 {[%clk 0:00:02.2]} 36. Nf5 {[%clk 0:00:18.4]} 36... b5 {[%clk 0:00:02.3]}
37. b4 {[%clk 0:00:18.6]} 37... Ra8 {[%clk 0:00:02.3]} 38. Nd6 {[%clk
0:00:17.6]} 38... Ra7 {[%clk 0:00:01.9]} 39. Nxb7 {[%clk 0:00:18.2]} 39... Rxb7
{[%clk 0:00:02.3]} 40. Ra2 {[%clk 0:00:18.8]} 40... Ke7 {[%clk 0:00:02.7]} 41.
Ra8 {[%clk 0:00:19.7]} 41... Rd7 {[%clk 0:00:02.9]} 42. Ra6 {[%clk 0:00:20]}
42... f6 {[%clk 0:00:03.8]} 43. Rxc6 {[%clk 0:00:19.9]} 43... d4 {[%clk
0:00:04.7]} 44. cxd4 {[%clk 0:00:20.1]} 44... exd4 {[%clk 0:00:05.6]} 45. Ke1
{[%clk 0:00:18.8]} 45... d3 {[%clk 0:00:06]} 46. Kd2 {[%clk 0:00:19.7]} 46... h3
{[%clk 0:00:06.3]} 0-1

[Event "Late-Titled-Tuesday-Blitz-June-25-2024"]
[Site "Chess.com"]
[Date "2024.06.25"]
[Round "9"]
[White "HalfIsCrayfish"]
[Black "reevecanada"]
[Result "0-1"]
[WhiteElo "2568"]
[BlackElo "2699"]
[TimeControl "180+1"]
[EndTime "15:44:48 PDT"]
[Termination "reevecanada won by resignation"]

1. d4 {[%clk 0:03:00.9]} 1... Nf6 {[%clk 0:02:56.1]} 2. c4 {[%clk 0:03:01.2]}
2... e6 {[%clk 0:02:55]} 3. Nc3 {[%clk 0:03:01.3]} 3... b6 {[%clk 0:02:54]} 4.
e4 {[%clk 0:03:01]} 4... d6 {[%clk 0:02:53.2]} 5. Bd3 {[%clk 0:02:55.8]} 5...
Bb7 {[%clk 0:02:51.5]} 6. f3 {[%clk 0:02:56.2]} 6... Nbd7 {[%clk 0:02:50.5]} 7.
Nge2 {[%clk 0:02:56.1]} 7... g6 {[%clk 0:02:50.8]} 8. Bg5 {[%clk 0:02:54.8]}
8... Bg7 {[%clk 0:02:50.5]} 9. Qd2 {[%clk 0:02:55.1]} 9... h6 {[%clk 0:02:50.2]}
10. Be3 {[%clk 0:02:54.4]} 10... c5 {[%clk 0:02:49.6]} 11. d5 {[%clk 0:02:53.5]}
11... Ne5 {[%clk 0:02:47.4]} 12. O-O {[%clk 0:02:48.9]} 12... a6 {[%clk
0:02:40.5]} 13. h3 {[%clk 0:02:46.1]} 13... Nxd3 {[%clk 0:02:36.2]} 14. Qxd3
{[%clk 0:02:46.2]} 14... e5 {[%clk 0:02:35.7]} 15. Qd2 {[%clk 0:02:45.8]} 15...
g5 {[%clk 0:02:34.7]} 16. Ng3 {[%clk 0:02:40.2]} 16... Bc8 {[%clk 0:02:33.1]}
17. Nf5 {[%clk 0:02:40.4]} 17... Bxf5 {[%clk 0:02:23]} 18. exf5 {[%clk
0:02:41.3]} 18... O-O {[%clk 0:02:22.1]} 19. Ne4 {[%clk 0:02:39]} 19... Qd7
{[%clk 0:02:21.3]} 20. g4 {[%clk 0:02:35.6]} 20... Nxe4 {[%clk 0:02:18.3]} 21.
fxe4 {[%clk 0:02:36.5]} 21... Bf6 {[%clk 0:02:18]} 22. h4 {[%clk 0:02:35.8]}
22... Qe7 {[%clk 0:02:18]} 23. Kg2 {[%clk 0:02:26.7]} 23... Kg7 {[%clk
0:02:14.6]} 24. Rh1 {[%clk 0:02:25.6]} 24... Rh8 {[%clk 0:02:12.9]} 25. hxg5
{[%clk 0:02:25.5]} 25... hxg5 {[%clk 0:02:11.8]} 26. Rxh8 {[%clk 0:02:10.9]}
26... Rxh8 {[%clk 0:02:09.1]} 27. Rh1 {[%clk 0:02:11.8]} 27... Rxh1 {[%clk
0:02:07.3]} 28. Kxh1 {[%clk 0:02:12.7]} 28... Qd8 {[%clk 0:02:05.7]} 29. Kg2
{[%clk 0:02:02.2]} 29... Be7 {[%clk 0:02:01.6]} 30. b4 {[%clk 0:01:51.9]} 30...
f6 {[%clk 0:01:47.5]} 31. Qe1 {[%clk 0:01:35]} 31... Qc7 {[%clk 0:01:44.9]} 32.
Kf3 {[%clk 0:01:24.2]} 32... Qd7 {[%clk 0:01:42.6]} 33. bxc5 {[%clk 0:01:17.2]}
33... dxc5 {[%clk 0:01:30.9]} 34. Qd1 {[%clk 0:01:12.7]} 34... b5 {[%clk
0:01:26.8]} 35. Qh1 {[%clk 0:00:55.1]} 35... bxc4 {[%clk 0:01:08.2]} 36. Qh5
{[%clk 0:00:54.8]} 36... Qa4 {[%clk 0:01:07.8]} 37. Qg6+ {[%clk 0:00:52.1]}
37... Kf8 {[%clk 0:01:06.5]} 38. Qh6+ {[%clk 0:00:52.3]} 38... Ke8 {[%clk
0:01:05.5]} 39. Qh8+ {[%clk 0:00:34.3]} 39... Kd7 {[%clk 0:01:01.6]} 40. Qa8
{[%clk 0:00:33.8]} 40... c3 {[%clk 0:00:40.4]} 41. Qb7+ {[%clk 0:00:27]} 41...
Ke8 {[%clk 0:00:37.9]} 42. Qb3 {[%clk 0:00:26.3]} 42... Qxb3 {[%clk 0:00:26.7]}
43. axb3 {[%clk 0:00:27.2]} 43... c4 {[%clk 0:00:24.8]} 44. b4 {[%clk
0:00:03.8]} 44... Bxb4 {[%clk 0:00:23.2]} 45. Ke2 {[%clk 0:00:04.4]} 45... c2
{[%clk 0:00:21.4]} 46. Bc1 {[%clk 0:00:01.9]} 46... a5 {[%clk 0:00:21.2]} 47.
Bb2 {[%clk 0:00:02.1]} 47... a4 {[%clk 0:00:21]} 0-1